[Event "Early-Titled-Tuesday-Blitz-March-05-2024"]
[Site "Chess.com"]
[Date "2024.03.05"]
[Round "1"]
[White "HajiyevKanan"]
[Black "tarno17"]
[Result "1-0"]
[WhiteElo "2544"]
[BlackElo "2144"]
[TimeControl "180+1"]
[EndTime "8:07:32 PST"]
[Termination "HajiyevKanan won by checkmate"]

1. d4 {[%clk 0:03:00.9]} 1... d5 {[%clk 0:02:58.8]} 2. c4 {[%clk 0:02:54.1]}
2... e6 {[%clk 0:02:58.9]} 3. cxd5 {[%clk 0:02:55]} 3... exd5 {[%clk 0:02:59.1]}
4. Nc3 {[%clk 0:02:55.9]} 4... Nf6 {[%clk 0:02:59.5]} 5. Qc2 {[%clk 0:02:56.5]}
5... Be7 {[%clk 0:02:56.2]} 6. Bf4 {[%clk 0:02:56.3]} 6... c6 {[%clk 0:02:55.6]}
7. e3 {[%clk 0:02:56.9]} 7... O-O {[%clk 0:02:55.9]} 8. Bd3 {[%clk 0:02:57.2]}
8... b6 {[%clk 0:02:50.3]} 9. Nf3 {[%clk 0:02:54.6]} 9... Bb7 {[%clk 0:02:50.2]}
10. O-O {[%clk 0:02:54.9]} 10... c5 {[%clk 0:02:49]} 11. Rfd1 {[%clk 0:02:33]}
11... Nc6 {[%clk 0:02:35.3]} 12. a3 {[%clk 0:02:32.3]} 12... cxd4 {[%clk
0:02:26.8]} 13. exd4 {[%clk 0:02:32.7]} 13... Na5 {[%clk 0:02:23.2]} 14. Ne5
{[%clk 0:02:26.4]} 14... h6 {[%clk 0:02:16]} 15. Rac1 {[%clk 0:02:23.8]} 15...
Nh5 {[%clk 0:01:54.4]} 16. Be3 {[%clk 0:02:22.7]} 16... Rc8 {[%clk 0:01:44.7]}
17. Bf5 {[%clk 0:02:19.1]} 17... Rc7 {[%clk 0:01:44.7]} 18. Qe2 {[%clk
0:02:17.7]} 18... Nf6 {[%clk 0:01:41]} 19. Bf4 {[%clk 0:02:16.6]} 19... Bd6
{[%clk 0:01:40.3]} 20. Bd3 {[%clk 0:02:15.7]} 20... Nb3 {[%clk 0:01:37.6]} 21.
Bxh6 {[%clk 0:01:54.2]} 21... gxh6 {[%clk 0:01:03.8]} 22. Qe3 {[%clk 0:01:54.3]}
22... Kg7 {[%clk 0:00:49.1]} 23. Qg3+ {[%clk 0:01:53.8]} 23... Kh8 {[%clk
0:00:49.5]} 24. Qf4 {[%clk 0:01:52.5]} 24... Ng8 {[%clk 0:00:47.7]} 25. Qf5
{[%clk 0:01:49]} 25... f6 {[%clk 0:00:32.9]} 26. Ng6+ {[%clk 0:01:43.9]} 26...
Kg7 {[%clk 0:00:33.5]} 27. Nf4 {[%clk 0:01:39.3]} 27... Kh8 {[%clk 0:00:26.4]}
28. Ne6 {[%clk 0:01:24.7]} 28... Qd7 {[%clk 0:00:18.5]} 29. Nxc7 {[%clk
0:01:12.1]} 29... Qxf5 {[%clk 0:00:17.7]} 30. Bxf5 {[%clk 0:01:11.8]} 30... Nxc1
{[%clk 0:00:17.4]} 31. N7b5 {[%clk 0:01:05.3]} 31... Bf4 {[%clk 0:00:16.6]} 32.
g3 {[%clk 0:01:04.7]} 32... Ne7 {[%clk 0:00:05.7]} 33. Bc2 {[%clk 0:00:56.9]}
33... Bb8 {[%clk 0:00:02.5]} 34. Rxc1 {[%clk 0:00:56.6]} 34... a6 {[%clk
0:00:03]} 35. Re1 {[%clk 0:00:50.4]} 35... Nf5 {[%clk 0:00:02.3]} 36. Bxf5
{[%clk 0:00:48.5]} 36... axb5 {[%clk 0:00:03.1]} 37. Re7 {[%clk 0:00:47.6]}
37... Bc6 {[%clk 0:00:02.9]} 38. Rh7+ {[%clk 0:00:41.3]} 38... Kg8 {[%clk
0:00:03.3]} 39. Rxh6 {[%clk 0:00:41.9]} 39... Rf7 {[%clk 0:00:03.5]} 40. Be6
{[%clk 0:00:41.5]} 40... Kg7 {[%clk 0:00:03.1]} 41. Bxf7 {[%clk 0:00:35.2]}
41... Kxh6 {[%clk 0:00:03.7]} 42. Bxd5 {[%clk 0:00:35.7]} 42... Bd7 {[%clk
0:00:03]} 43. b4 {[%clk 0:00:31.6]} 43... Bd6 {[%clk 0:00:03.4]} 44. Be4 {[%clk
0:00:27.9]} 44... f5 {[%clk 0:00:03]} 45. Bd3 {[%clk 0:00:28.3]} 45... Kg5
{[%clk 0:00:03.5]} 46. Bxb5 {[%clk 0:00:28.6]} 46... Be6 {[%clk 0:00:03.1]} 47.
f4+ {[%clk 0:00:28.3]} 47... Kg4 {[%clk 0:00:03.3]} 48. Kg2 {[%clk 0:00:24.6]}
48... Bb3 {[%clk 0:00:02.8]} 49. Be2# {[%clk 0:00:24.7]} 1-0

[Event "Early-Titled-Tuesday-Blitz-March-05-2024"]
[Site "Chess.com"]
[Date "2024.03.05"]
[Round "1"]
[White "JG-17"]
[Black "MatthewG-p4p"]
[Result "0-1"]
[WhiteElo "2479"]
[BlackElo "2895"]
[TimeControl "180+1"]
[EndTime "8:07:33 PST"]
[Termination "MatthewG-p4p won by checkmate"]

1. e4 {[%clk 0:03:00.9]} 1... e6 {[%clk 0:02:59.9]} 2. d4 {[%clk 0:03:00.7]}
2... d5 {[%clk 0:03:00.4]} 3. exd5 {[%clk 0:03:01.3]} 3... exd5 {[%clk
0:02:55.9]} 4. Bd3 {[%clk 0:03:01.8]} 4... c5 {[%clk 0:02:55.3]} 5. Nf3 {[%clk
0:02:59.1]} 5... Nf6 {[%clk 0:02:55]} 6. O-O {[%clk 0:02:58.9]} 6... Nc6 {[%clk
0:02:55.4]} 7. Re1+ {[%clk 0:02:58.1]} 7... Be7 {[%clk 0:02:55.7]} 8. dxc5
{[%clk 0:02:58.6]} 8... O-O {[%clk 0:02:56.1]} 9. Nbd2 {[%clk 0:02:34.2]} 9...
Bxc5 {[%clk 0:02:55.2]} 10. Nb3 {[%clk 0:02:34.7]} 10... Bb6 {[%clk 0:02:55]}
11. Be3 {[%clk 0:02:34.9]} 11... Bc7 {[%clk 0:02:53.4]} 12. Nbd4 {[%clk
0:02:27.8]} 12... Re8 {[%clk 0:02:51]} 13. c3 {[%clk 0:02:18]} 13... Bg4 {[%clk
0:02:48.6]} 14. h3 {[%clk 0:02:16]} 14... Bh5 {[%clk 0:02:48]} 15. Qc2 {[%clk
0:02:10.9]} 15... Ne4 {[%clk 0:02:34.4]} 16. Nxc6 {[%clk 0:02:07.4]} 16... bxc6
{[%clk 0:02:34.1]} 17. Nd4 {[%clk 0:02:07.5]} 17... Qd6 {[%clk 0:02:33.4]} 18.
f4 {[%clk 0:02:00.3]} 18... Bg6 {[%clk 0:01:40.9]} 19. g4 {[%clk 0:01:41.2]}
19... f6 {[%clk 0:01:29.7]} 20. Rad1 {[%clk 0:01:20.5]} 20... h5 {[%clk
0:01:20.5]} 21. f5 {[%clk 0:00:47.4]} 21... Bf7 {[%clk 0:01:13.4]} 22. Qg2
{[%clk 0:00:47.9]} 22... hxg4 {[%clk 0:00:56.1]} 23. hxg4 {[%clk 0:00:47.2]}
23... Rab8 {[%clk 0:00:52.1]} 24. c4 {[%clk 0:00:46.4]} 24... Bb6 {[%clk
0:00:45.5]} 25. Ne6 {[%clk 0:00:40.1]} 25... Bxe6 {[%clk 0:00:41]} 26. Bxb6
{[%clk 0:00:36.2]} 26... axb6 {[%clk 0:00:41.3]} 27. fxe6 {[%clk 0:00:36.1]}
27... Qxe6 {[%clk 0:00:34.6]} 28. cxd5 {[%clk 0:00:32.6]} 28... cxd5 {[%clk
0:00:35]} 29. b3 {[%clk 0:00:29.2]} 29... b5 {[%clk 0:00:33]} 30. Re3 {[%clk
0:00:17.6]} 30... Qb6 {[%clk 0:00:32.6]} 31. Re1 {[%clk 0:00:17]} 31... Ng5
{[%clk 0:00:32.9]} 32. Qf2 {[%clk 0:00:13.8]} 32... Nh3+ {[%clk 0:00:32.8]} 33.
Rxh3 {[%clk 0:00:13.3]} 33... Rxe1+ {[%clk 0:00:33.7]} 34. Kg2 {[%clk
0:00:12.4]} 34... Qxf2+ {[%clk 0:00:34.3]} 35. Kxf2 {[%clk 0:00:13]} 35... Ra1
{[%clk 0:00:34.9]} 36. Bf5 {[%clk 0:00:06.2]} 36... Kf7 {[%clk 0:00:33.6]} 37.
Re3 {[%clk 0:00:05.4]} 37... Rxa2+ {[%clk 0:00:33.8]} 38. Kf3 {[%clk 0:00:05.5]}
38... Rd8 {[%clk 0:00:30]} 39. Rc3 {[%clk 0:00:02.2]} 39... Ra7 {[%clk
0:00:28.7]} 40. Bd3 {[%clk 0:00:01.5]} 40... b4 {[%clk 0:00:28.8]} 41. Rc5
{[%clk 0:00:01.9]} 41... Re7 {[%clk 0:00:25.3]} 42. Rb5 {[%clk 0:00:01.4]} 42...
d4 {[%clk 0:00:25.5]} 43. Kf4 {[%clk 0:00:01.8]} 43... g5+ {[%clk 0:00:25.6]}
44. Kf5 {[%clk 0:00:01.7]} 44... Kg7 {[%clk 0:00:22.8]} 45. Bc4 {[%clk
0:00:02.1]} 45... Rde8 {[%clk 0:00:21.8]} 46. Rb6 {[%clk 0:00:01.6]} 46... Re5#
{[%clk 0:00:21.7]} 0-1

[Event "Early-Titled-Tuesday-Blitz-March-05-2024"]
[Site "Chess.com"]
[Date "2024.03.05"]
[Round "1"]
[White "Igor_Lysyj"]
[Black "KanalSzachowy"]
[Result "1-0"]
[WhiteElo "2846"]
[BlackElo "2462"]
[TimeControl "180+1"]
[EndTime "8:07:33 PST"]
[Termination "Igor_Lysyj won by checkmate"]

1. d4 {[%clk 0:03:00.9]} 1... Nf6 {[%clk 0:02:59.1]} 2. c4 {[%clk 0:03:00.1]}
2... e6 {[%clk 0:02:59.1]} 3. Nf3 {[%clk 0:02:59.7]} 3... Bb4+ {[%clk
0:02:58.5]} 4. Bd2 {[%clk 0:02:59.3]} 4... Qe7 {[%clk 0:02:58.2]} 5. g3 {[%clk
0:02:58.8]} 5... Bxd2+ {[%clk 0:02:57.9]} 6. Qxd2 {[%clk 0:02:58.4]} 6... Nc6
{[%clk 0:02:58.5]} 7. a3 {[%clk 0:02:58]} 7... d5 {[%clk 0:02:52.5]} 8. Bg2
{[%clk 0:02:58]} 8... O-O {[%clk 0:02:51.2]} 9. O-O {[%clk 0:02:53.3]} 9... dxc4
{[%clk 0:02:45.2]} 10. Qc3 {[%clk 0:02:53.4]} 10... e5 {[%clk 0:02:43.5]} 11.
dxe5 {[%clk 0:02:42.4]} 11... Ng4 {[%clk 0:02:38.1]} 12. Qxc4 {[%clk 0:02:41.6]}
12... Ngxe5 {[%clk 0:02:37.6]} 13. Nxe5 {[%clk 0:02:38.9]} 13... Nxe5 {[%clk
0:02:37.3]} 14. Qc3 {[%clk 0:02:35.2]} 14... c6 {[%clk 0:02:36.4]} 15. Nd2
{[%clk 0:02:33.2]} 15... Bf5 {[%clk 0:02:22.1]} 16. e4 {[%clk 0:02:32.5]} 16...
Bg6 {[%clk 0:02:15]} 17. f4 {[%clk 0:02:32.2]} 17... Nd7 {[%clk 0:02:04.2]} 18.
Rfe1 {[%clk 0:02:21.1]} 18... h6 {[%clk 0:01:59.4]} 19. Nb3 {[%clk 0:02:13.1]}
19... a5 {[%clk 0:01:55.9]} 20. Rad1 {[%clk 0:02:09.5]} 20... a4 {[%clk
0:01:54.9]} 21. Nd4 {[%clk 0:02:06.3]} 21... Qc5 {[%clk 0:01:54.1]} 22. Qe3
{[%clk 0:01:40.2]} 22... Qb6 {[%clk 0:01:44.3]} 23. Qf2 {[%clk 0:01:39.2]} 23...
Nc5 {[%clk 0:01:40.3]} 24. f5 {[%clk 0:01:37]} 24... Bh7 {[%clk 0:01:39.9]} 25.
f6 {[%clk 0:01:33.6]} 25... g5 {[%clk 0:01:32.6]} 26. e5 {[%clk 0:01:28.8]}
26... Nd3 {[%clk 0:01:30.8]} 27. Rxd3 {[%clk 0:01:27.1]} 27... Bxd3 {[%clk
0:01:31.5]} 28. Be4 {[%clk 0:00:57.7]} 28... Rad8 {[%clk 0:01:13.1]} 29. Nf5
{[%clk 0:00:57.6]} 29... Qxf2+ {[%clk 0:01:11.8]} 30. Kxf2 {[%clk 0:00:58.1]}
30... Bxe4 {[%clk 0:01:12]} 31. Rxe4 {[%clk 0:00:58.5]} 31... Kh7 {[%clk
0:01:10.8]} 32. Nd6 {[%clk 0:00:57.1]} 32... b5 {[%clk 0:01:03]} 33. Ke3 {[%clk
0:00:45.9]} 33... Kg6 {[%clk 0:01:03.1]} 34. Kd4 {[%clk 0:00:45]} 34... Rd7
{[%clk 0:00:43.8]} 35. Kc5 {[%clk 0:00:45.1]} 35... Rb8 {[%clk 0:00:37.4]} 36.
Kxc6 {[%clk 0:00:41.7]} 36... Rdd8 {[%clk 0:00:33.3]} 37. g4 {[%clk 0:00:34.7]}
37... h5 {[%clk 0:00:28.7]} 38. gxh5+ {[%clk 0:00:28.7]} 38... Kxh5 {[%clk
0:00:29.6]} 39. Nxf7 {[%clk 0:00:27.6]} 39... Rdc8+ {[%clk 0:00:28.3]} 40. Kd5
{[%clk 0:00:26.6]} 40... Rc2 {[%clk 0:00:27.4]} 41. e6 {[%clk 0:00:23.5]} 41...
Kg6 {[%clk 0:00:25.1]} 42. Ne5+ {[%clk 0:00:23.6]} 42... Kh5 {[%clk 0:00:24.6]}
43. e7 {[%clk 0:00:23.2]} 43... g4 {[%clk 0:00:20.6]} 44. f7 {[%clk 0:00:22.1]}
44... g3 {[%clk 0:00:19.9]} 45. hxg3 {[%clk 0:00:20.2]} 45... Rd2+ {[%clk
0:00:19]} 46. Ke6 {[%clk 0:00:19.4]} 46... Rb6+ {[%clk 0:00:19.1]} 47. Kf5
{[%clk 0:00:19.4]} 47... Rf2+ {[%clk 0:00:18.7]} 48. Rf4 {[%clk 0:00:19.8]}
48... Rf6+ {[%clk 0:00:18.2]} 49. Kxf6 {[%clk 0:00:19.8]} 49... Rxf4+ {[%clk
0:00:18.8]} 50. gxf4 {[%clk 0:00:19.9]} 50... b4 {[%clk 0:00:19.7]} 51. f8=Q
{[%clk 0:00:19]} 51... bxa3 {[%clk 0:00:20.6]} 52. Qh8# {[%clk 0:00:18.9]} 1-0

[Event "Early-Titled-Tuesday-Blitz-March-05-2024"]
[Site "Chess.com"]
[Date "2024.03.05"]
[Round "1"]
[White "only_strong_moves"]
[Black "crosky"]
[Result "0-1"]
[WhiteElo "2571"]
[BlackElo "2271"]
[TimeControl "180+1"]
[EndTime "8:07:38 PST"]
[Termination "crosky won by resignation"]

1. d4 {[%clk 0:03:00.9]} 1... Nf6 {[%clk 0:03:00.1]} 2. Nc3 {[%clk 0:03:00.4]}
2... d5 {[%clk 0:03:00]} 3. Bf4 {[%clk 0:03:01.1]} 3... c5 {[%clk 0:03:00.2]} 4.
e4 {[%clk 0:03:00.8]} 4... cxd4 {[%clk 0:03:00.9]} 5. Qxd4 {[%clk 0:03:00.4]}
5... Nc6 {[%clk 0:02:57.9]} 6. Bb5 {[%clk 0:03:00.9]} 6... dxe4 {[%clk
0:02:46.3]} 7. Qxd8+ {[%clk 0:02:56.9]} 7... Kxd8 {[%clk 0:02:47.2]} 8. O-O-O+
{[%clk 0:02:57]} 8... Bd7 {[%clk 0:02:47.7]} 9. Nh3 {[%clk 0:02:55.8]} 9... h6
{[%clk 0:02:44.3]} 10. Rhe1 {[%clk 0:02:55.4]} 10... g5 {[%clk 0:02:44.6]} 11.
Bg3 {[%clk 0:02:51]} 11... Bg7 {[%clk 0:02:43.8]} 12. Nxe4 {[%clk 0:02:49.8]}
12... Nxe4 {[%clk 0:02:41.4]} 13. Rxe4 {[%clk 0:02:50.7]} 13... f5 {[%clk
0:02:22.8]} 14. Re2 {[%clk 0:02:19.7]} 14... f4 {[%clk 0:02:22.3]} 15. Red2
{[%clk 0:02:19.8]} 15... Nd4 {[%clk 0:02:10]} 16. Rxd4 {[%clk 0:02:13]} 16...
Bxd4 {[%clk 0:02:07.6]} 17. Rxd4 {[%clk 0:02:13.9]} 17... fxg3 {[%clk
0:02:06.8]} 18. hxg3 {[%clk 0:02:03.8]} 18... Kc7 {[%clk 0:01:58.6]} 19. Rxd7+
{[%clk 0:02:02.5]} 19... Kb6 {[%clk 0:01:59]} 20. Bd3 {[%clk 0:02:01.9]} 20...
e5 {[%clk 0:01:39]} 21. f3 {[%clk 0:01:58.3]} 21... Rad8 {[%clk 0:01:36.6]} 22.
Re7 {[%clk 0:01:57.9]} 22... Rhe8 {[%clk 0:01:35.2]} 23. Rh7 {[%clk 0:01:58.2]}
23... Rd6 {[%clk 0:01:34.2]} 24. Nf2 {[%clk 0:01:57.6]} 24... Rc6 {[%clk
0:01:24.2]} 25. Ne4 {[%clk 0:01:56.7]} 25... Rd8 {[%clk 0:01:24.7]} 26. a3
{[%clk 0:01:54.2]} 26... Rxd3 {[%clk 0:01:24.1]} 27. Re7 {[%clk 0:01:30.4]}
27... Rd5 {[%clk 0:01:19.1]} 28. b3 {[%clk 0:01:29.9]} 28... a5 {[%clk
0:01:18.8]} 29. c4 {[%clk 0:01:24.7]} 29... Rd3 {[%clk 0:01:09.3]} 30. Kc2
{[%clk 0:01:22.5]} 30... Re3 {[%clk 0:01:10]} 31. c5+ {[%clk 0:01:19.8]} 31...
Ka6 {[%clk 0:01:00.7]} 32. Rxe5 {[%clk 0:01:02.4]} 32... Re2+ {[%clk 0:01:00.8]}
33. Kd3 {[%clk 0:01:00.6]} 33... Rxg2 {[%clk 0:01:01.7]} 34. a4 {[%clk
0:01:00.4]} 34... Rg6 {[%clk 0:00:47.6]} 35. Re8 {[%clk 0:00:57.6]} 35... Ka7
{[%clk 0:00:45.8]} 36. Nc3 {[%clk 0:00:56.2]} 36... b6 {[%clk 0:00:34.8]} 37.
Re7+ {[%clk 0:00:31.7]} 37... Kb8 {[%clk 0:00:34.7]} 38. Ne4 {[%clk 0:00:28.4]}
38... bxc5 {[%clk 0:00:32]} 39. Kc4 {[%clk 0:00:29]} 39... Rc2+ {[%clk
0:00:30.4]} 40. Kb5 {[%clk 0:00:29.6]} 40... h5 {[%clk 0:00:30]} 41. Nxc5 {[%clk
0:00:25.2]} 41... h4 {[%clk 0:00:21.9]} 42. gxh4 {[%clk 0:00:26.1]} 42... gxh4
{[%clk 0:00:22.6]} 43. f4 {[%clk 0:00:23.6]} 43... h3 {[%clk 0:00:18.9]} 44. f5
{[%clk 0:00:24.2]} 44... Rh6 {[%clk 0:00:16]} 45. Na6+ {[%clk 0:00:19.6]} 45...
Kc8 {[%clk 0:00:14.9]} 46. Nc5 {[%clk 0:00:11.7]} 46... Rxc5+ {[%clk 0:00:14.7]}
47. Kxc5 {[%clk 0:00:11.7]} 47... h2 {[%clk 0:00:15.6]} 48. Ra7 {[%clk
0:00:11.1]} 48... h1=Q {[%clk 0:00:15.5]} 49. Ra8+ {[%clk 0:00:11.3]} 49... Kb7
{[%clk 0:00:15.7]} 0-1

[Event "Early-Titled-Tuesday-Blitz-March-05-2024"]
[Site "Chess.com"]
[Date "2024.03.05"]
[Round "1"]
[White "DeArron_Fox"]
[Black "Chessmissile07"]
[Result "0-1"]
[WhiteElo "2484"]
[BlackElo "2901"]
[TimeControl "180+1"]
[EndTime "8:07:40 PST"]
[Termination "Chessmissile07 won on time"]

1. d4 {[%clk 0:03:00.9]} 1... a6 {[%clk 0:03:00.9]} 2. e4 {[%clk 0:02:58.8]}
2... d5 {[%clk 0:02:49.8]} 3. exd5 {[%clk 0:02:43.7]} 3... Qxd5 {[%clk
0:02:50.7]} 4. Nc3 {[%clk 0:02:43.6]} 4... Qd6 {[%clk 0:02:51]} 5. g3 {[%clk
0:02:19.5]} 5... Nc6 {[%clk 0:02:46.6]} 6. Nge2 {[%clk 0:01:49]} 6... e5 {[%clk
0:02:39.4]} 7. d5 {[%clk 0:01:44.5]} 7... Nce7 {[%clk 0:02:31]} 8. Bg2 {[%clk
0:01:43]} 8... Nf6 {[%clk 0:02:30.8]} 9. O-O {[%clk 0:01:35.1]} 9... Ng6 {[%clk
0:02:30.1]} 10. Bg5 {[%clk 0:01:27.4]} 10... Be7 {[%clk 0:02:28.1]} 11. Bxf6
{[%clk 0:01:19.1]} 11... gxf6 {[%clk 0:02:28.1]} 12. Ne4 {[%clk 0:01:19.2]}
12... Qb6 {[%clk 0:02:25.6]} 13. c4 {[%clk 0:00:48.2]} 13... f5 {[%clk
0:02:25.1]} 14. N4c3 {[%clk 0:00:46]} 14... Qxb2 {[%clk 0:02:21.4]} 15. c5
{[%clk 0:00:22.5]} 15... Bxc5 {[%clk 0:01:42.1]} 16. Na4 {[%clk 0:00:17.7]}
16... Qa3 {[%clk 0:01:42.5]} 17. Nxc5 {[%clk 0:00:04.7]} 17... Qxc5 {[%clk
0:01:43.4]} 18. Rc1 {[%clk 0:00:05.3]} 18... Qd6 {[%clk 0:01:43.8]} 19. Qc2
{[%clk 0:00:05.6]} 19... Kd8 {[%clk 0:01:26.3]} 20. Qb2 {[%clk 0:00:05.4]} 20...
Re8 {[%clk 0:01:23.4]} 21. Rc2 {[%clk 0:00:05.3]} 21... Qb6 {[%clk 0:01:15]} 22.
Qa3 {[%clk 0:00:02.9]} 22... Bd7 {[%clk 0:01:13.9]} 23. Rfc1 {[%clk 0:00:03.1]}
23... Rc8 {[%clk 0:01:14.2]} 24. h4 {[%clk 0:00:03.5]} 24... Qd6 {[%clk
0:01:10.3]} 25. Qb2 {[%clk 0:00:03.3]} 25... Qb6 {[%clk 0:00:55.1]} 26. Qa3
{[%clk 0:00:03.4]} 26... e4 {[%clk 0:00:55.5]} 27. h5 {[%clk 0:00:03.5]} 27...
Ne5 {[%clk 0:00:55.7]} 28. Nf4 {[%clk 0:00:03.4]} 28... Qd6 {[%clk 0:00:48]} 29.
Qb2 {[%clk 0:00:03.4]} 29... Bb5 {[%clk 0:00:48.6]} 30. a4 {[%clk 0:00:02.9]}
30... Bd3 {[%clk 0:00:44.8]} 31. Qxb7 {[%clk 0:00:03.8]} 31... Bxc2 {[%clk
0:00:44.9]} 32. Rxc2 {[%clk 0:00:04.7]} 32... Ke7 {[%clk 0:00:43]} 33. Bh3
{[%clk 0:00:04.6]} 33... Nf3+ {[%clk 0:00:17.8]} 34. Kh1 {[%clk 0:00:04.6]}
34... Kf8 {[%clk 0:00:14.8]} 35. Bxf5 {[%clk 0:00:04.3]} 35... Rb8 {[%clk
0:00:15]} 36. Qxc7 {[%clk 0:00:04.2]} 36... Rb1+ {[%clk 0:00:14.6]} 37. Kg2
{[%clk 0:00:04.4]} 37... Rg1+ {[%clk 0:00:14.4]} 38. Kh3 {[%clk 0:00:04.9]}
38... Rh1+ {[%clk 0:00:13.9]} 39. Kg2 {[%clk 0:00:03.6]} 39... Rh2+ {[%clk
0:00:13.7]} 40. Kf1 {[%clk 0:00:04]} 40... Qxc7 {[%clk 0:00:11.3]} 41. Rxc7
{[%clk 0:00:04.9]} 41... e3 {[%clk 0:00:12]} 42. fxe3 {[%clk 0:00:02.5]} 42...
Rxe3 {[%clk 0:00:12.7]} 43. Rc8+ {[%clk 0:00:03.2]} 43... Kg7 {[%clk 0:00:12.8]}
0-1

[Event "Early-Titled-Tuesday-Blitz-March-05-2024"]
[Site "Chess.com"]
[Date "2024.03.05"]
[Round "1"]
[White "atalz0"]
[Black "SirStrateg"]
[Result "0-1"]
[WhiteElo "2377"]
[BlackElo "2679"]
[TimeControl "180+1"]
[EndTime "8:07:40 PST"]
[Termination "SirStrateg won on time"]

1. d4 {[%clk 0:02:55.3]} 1... d6 {[%clk 0:03:00.3]} 2. e4 {[%clk 0:02:54.5]}
2... Nf6 {[%clk 0:03:00]} 3. f3 {[%clk 0:02:54.5]} 3... c6 {[%clk 0:02:56.8]} 4.
Be3 {[%clk 0:02:53.1]} 4... Qb6 {[%clk 0:02:56]} 5. b3 {[%clk 0:02:39.2]} 5...
Nbd7 {[%clk 0:02:51.1]} 6. a4 {[%clk 0:02:27.5]} 6... e5 {[%clk 0:02:50]} 7. a5
{[%clk 0:02:26.2]} 7... Qc7 {[%clk 0:02:49.6]} 8. Ne2 {[%clk 0:02:09.4]} 8... d5
{[%clk 0:02:42.2]} 9. Nd2 {[%clk 0:01:53.9]} 9... dxe4 {[%clk 0:02:36.7]} 10.
Nxe4 {[%clk 0:01:53.7]} 10... Nxe4 {[%clk 0:02:23.8]} 11. fxe4 {[%clk
0:01:54.6]} 11... Bb4+ {[%clk 0:02:18.2]} 12. c3 {[%clk 0:01:53.6]} 12... Bxa5
{[%clk 0:02:17.2]} 13. g3 {[%clk 0:01:23.6]} 13... exd4 {[%clk 0:02:11.8]} 14.
Bxd4 {[%clk 0:01:18.7]} 14... Ne5 {[%clk 0:02:05.9]} 15. Bg2 {[%clk 0:01:16.3]}
15... O-O {[%clk 0:02:02.8]} 16. O-O {[%clk 0:01:14.4]} 16... Bg4 {[%clk
0:01:55.9]} 17. h3 {[%clk 0:01:05.4]} 17... Bxe2 {[%clk 0:01:38.1]} 18. Qxe2
{[%clk 0:01:06.3]} 18... Bb6 {[%clk 0:01:37]} 19. Rf5 {[%clk 0:00:56.6]} 19...
Ng6 {[%clk 0:01:30.7]} 20. Qf2 {[%clk 0:00:47.8]} 20... Rad8 {[%clk 0:01:24.2]}
21. Rf1 {[%clk 0:00:38.9]} 21... Rd7 {[%clk 0:01:12.6]} 22. h4 {[%clk 0:00:34]}
22... Rfd8 {[%clk 0:01:11.6]} 23. Bxb6 {[%clk 0:00:30.9]} 23... Qxb6 {[%clk
0:01:09.6]} 24. h5 {[%clk 0:00:26]} 24... Qxf2+ {[%clk 0:01:06.6]} 25. R1xf2
{[%clk 0:00:25.4]} 25... Nf8 {[%clk 0:01:06.4]} 26. e5 {[%clk 0:00:14.1]} 26...
h6 {[%clk 0:01:03.4]} 27. b4 {[%clk 0:00:13.2]} 27... Nh7 {[%clk 0:00:56.4]} 28.
b5 {[%clk 0:00:10.9]} 28... cxb5 {[%clk 0:00:54.9]} 29. e6 {[%clk 0:00:10.9]}
29... fxe6 {[%clk 0:00:54.2]} 30. Rxb5 {[%clk 0:00:11.5]} 30... Nf6 {[%clk
0:00:50.6]} 31. Bxb7 {[%clk 0:00:08.7]} 31... Rb8 {[%clk 0:00:43.5]} 32. Rfb2
{[%clk 0:00:08.5]} 32... Rd3 {[%clk 0:00:38.8]} 33. Kg2 {[%clk 0:00:04.7]} 33...
Rxc3 {[%clk 0:00:38.2]} 34. Bf3 {[%clk 0:00:03.9]} 34... Rxb5 {[%clk 0:00:37.9]}
35. Rxb5 {[%clk 0:00:04.8]} 35... Rc7 {[%clk 0:00:36.2]} 36. Rb8+ {[%clk
0:00:03.8]} 36... Kf7 {[%clk 0:00:36.2]} 37. Ra8 {[%clk 0:00:02.8]} 37... e5
{[%clk 0:00:32.4]} 38. g4 {[%clk 0:00:03.3]} 38... e4 {[%clk 0:00:32.4]} 39. Be2
{[%clk 0:00:03.5]} 39... Ke6 {[%clk 0:00:30.5]} 40. Kf2 {[%clk 0:00:03.7]} 40...
Ke5 {[%clk 0:00:30.6]} 41. Ke3 {[%clk 0:00:03.1]} 41... Rc3+ {[%clk 0:00:31]}
42. Kf2 {[%clk 0:00:03.4]} 42... Kf4 {[%clk 0:00:30.2]} 43. Rxa7 {[%clk
0:00:02.8]} 43... e3+ {[%clk 0:00:29.7]} 44. Kg2 {[%clk 0:00:02.6]} 44... Rc2
{[%clk 0:00:28.2]} 45. Kf1 {[%clk 0:00:02.8]} 45... Kg3 {[%clk 0:00:23.5]} 46.
Bd3 {[%clk 0:00:02.2]} 46... Rf2+ {[%clk 0:00:20.5]} 47. Ke1 {[%clk 0:00:01.9]}
47... Rd2 {[%clk 0:00:15.7]} 0-1